bitfinex-derivatives/quotes_BNBF0:USTF0_20250130
["timestamp","ask_amount","ask_price","bid_price","bid_amount"]
[1738219795317,0.27114605,678.1,677.29,0.29529448]
[1738219797526,1.1044254,678.11,677.29,0.29529448]
[1738219797921,1.1044254,678.1,677.29,0.29529448]
[1738219800730,1.1044254,678.14,677.29,0.29529448]
[1738219804330,1.1044254,678.32,677.29,0.29529448]
[1738219807830,1.1044254,678.38,677.29,0.29529448]
[1738219808229,0.27110357,678.37,677.29,0.29529448]
[1738219810731,1.1044254,678.38,677.29,0.29529448]
[1738219810936,0.27111754,678.37,677.29,0.29529448]
[1738219811132,1.1044254,678.26,677.29,0.29529448]
[1738219811339,0.27111754,678.25,677.29,0.29529448]
[1738219812036,1.1044254,678.26,677.29,0.29529448]
[1738219814233,1.1044254,678.31,677.29,0.29529448]
[1738219814438,0.27111469,678.3,677.29,0.29529448]
[1738219815633,1.1044254,678.31,677.29,0.29529448]
[1738219815835,0.27111634,678.3,677.29,0.29529448]
[1738219823145,1.37554174,678.3,677.29,0.29529448]
[1738219823338,0.27111634,678.29,677.29,0.29529448]
[1738219823844,0.27110756,678.28,677.29,0.29529448]
[1738219824039,0.27110756,678.27,677.29,0.29529448]
[1738219824242,0.27110756,678.26,677.29,0.29529448]
[1738219824446,0.27110756,678.25,677.29,0.29529448]
[1738219824648,0.27110756,678.29,677.29,0.29529448]
[1738219824840,0.27110756,678.28,677.29,0.29529448]
[1738219825045,0.27110756,678.29,677.29,0.29529448]
[1738219825245,1.1044254,678.3,677.29,0.29529448]
[1738219825545,0.27111627,678.29,677.29,0.29529448]
[1738219826147,1.1044254,678.22,677.29,0.29529448]
[1738219826350,0.27111627,678.21,677.29,0.29529448]
[1738219829050,1.1044254,678.16,677.29,0.29529448]
[1738219832652,1.1044254,678.14,677.29,0.29529448]
[1738219835847,1.1044254,678.15,677.29,0.29529448]
[1738219839054,1.1044254,678.12,677.29,0.29529448]
[1738219842362,1.1044254,678.28,677.29,0.29529448]
[1738219845460,1.10238555,678.51,677.29,0.29529448]
[1738219845461,1.1044254,678.29,677.29,0.29529448]
[1738219847462,0.27107418,678.28,677.3,0.25682069]
[1738219847661,0.27107418,678.28,677.31,0.29528576]
[1738219847854,0.27107418,678.28,677.32,0.25682069]
[1738219848053,0.27107379,678.27,677.33,0.55209734]
[1738219848258,0.27107379,678.28,677.34,0.55209298]
[1738219848460,0.27107379,678.27,677.35,0.55208862]
[1738219848763,0.27107379,678.27,677.28,1.53976056]
[1738219848764,0.27107379,678.26,677.36,0.55208426]
[1738219848960,0.27107379,678.26,677.36,0.29526396]
[1738219849163,1.1044254,678.31,677.37,0.2952596]
[1738219849362,0.27107909,678.3,677.37,0.2952596]
[1738219849657,0.27107909,678.29,677.37,0.2952596]
[1738219849861,0.27107909,678.28,677.37,0.2952596]
[1738219850062,0.27107909,678.27,677.37,0.2952596]
[1738219850261,0.27107909,678.26,677.37,0.2952596]
[1738219850461,1.1044254,678.31,677.37,0.2952596]
[1738219850661,0.27107694,678.3,677.37,0.2952596]
[1738219851767,1.1044254,678.25,677.37,0.2952596]
[1738219854365,1.1044254,678.26,677.37,0.2952596]
[1738219858969,1.1044254,678.36,677.37,0.2952596]
[1738219859168,0.27107759,678.35,677.37,0.2952596]
[1738219859869,1.1044254,678.36,677.37,0.2952596]
[1738219860069,0.27107735,678.35,677.37,0.2952596]
[1738219860671,1.1044254,678.36,677.37,0.2952596]
[1738219860869,0.27107793,678.35,677.37,0.2952596]
[1738219861869,1.1044254,678.33,677.37,0.2952596]
[1738219863968,0.27107779,678.32,677.37,0.2952596]
[1738219865164,0.27107798,678.31,677.37,0.2952596]
[1738219865372,0.27107798,678.32,677.37,0.2952596]
[1738219865571,1.1044254,678.33,677.37,0.2952596]
[1738219865572,0.27107798,678.31,677.37,0.2952596]
[1738219865873,0.27107798,678.3,677.37,0.2952596]
[1738219866073,0.27107798,678.31,677.37,0.2952596]
[1738219866374,0.27107798,678.3,677.37,0.2952596]
[1738219866674,0.27107798,678.29,677.37,0.2952596]
[1738219866869,0.27107798,678.28,677.37,0.2952596]
[1738219867074,0.27107798,678.27,677.37,0.2952596]
[1738219867271,0.27107798,678.31,677.37,0.2952596]
[1738219867471,1.1044254,678.32,677.37,0.2952596]
[1738219867674,0.27107796,678.31,677.37,0.2952596]
[1738219868272,1.1044254,678.24,677.37,0.2952596]
[1738219870578,1.1044254,678.24,677.37,0.28774704]
[1738219870978,1.1044254,678.2,677.37,0.28774704]
[1738219874481,1.1044254,678.38,677.37,0.28774704]
[1738219876884,2.25070383,679.29,677.37,0.28774704]
[1738219876885,1.1044254,678.4,677.37,0.28774704]
[1738219880488,1.1044254,678.48,677.37,0.28774704]
[1738219883594,1.1044254,678.39,677.37,0.28774704]
[1738219886695,1.1044254,678.4,677.37,0.28774704]
[1738219886891,0.27106338,678.39,677.37,0.28774704]
[1738219887497,1.1044254,678.4,677.37,0.28774704]
[1738219888095,0.27106097,678.39,677.37,0.28774704]
[1738219889491,0.27106768,678.38,677.37,0.28774704]
[1738219889695,0.27106768,678.37,677.37,0.28774704]
[1738219889890,0.27106768,678.39,677.37,0.28774704]
[1738219890096,1.1044254,678.34,677.37,0.28774704]
[1738219890297,0.27106768,678.33,677.37,0.28774704]
[1738219891493,0.26533457,678.33,677.37,0.28774704]
[1738219892694,1.1044254,678.34,677.37,0.28774704]
[1738219893000,0.27106758,678.33,677.38,0.25715688]
[1738219893599,1.1044254,678.27,677.39,0.29525088]
[1738219897101,1.1044254,678.36,677.39,0.29525088]
[1738219900904,1.1044254,678.5,677.39,0.29525088]
[1738219902397,1.1044254,678.5,677.4,0.25710665]
[1738219902604,1.1044254,678.5,677.42,0.29523781]
[1738219902802,1.1044254,678.5,677.43,0.25710665]
[1738219903003,1.1044254,678.5,677.45,0.29522473]
[1738219903199,1.1044254,678.5,677.46,0.25710665]
[1738219903405,1.1044254,678.5,677.47,0.29521602]
[1738219904307,1.1044254,678.61,677.47,0.29521602]
[1738219904503,0.27099005,678.6,677.47,0.29521602]
[1738219905607,1.1044254,678.61,677.47,0.29521602]
[1738219905808,0.27099168,678.6,677.47,0.29521602]
[1738219907706,1.1044254,678.68,677.47,0.29521602]
[1738219907707,0.27099168,678.59,677.47,0.29521602]
[1738219907902,0.27099168,678.58,677.47,0.29521602]
[1738219908102,0.27099168,678.57,677.47,0.29521602]
[1738219908303,0.27099168,678.67,677.47,0.29521602]
[1738219908506,0.27099168,678.66,677.47,0.29521602]
[1738219908707,0.27099168,678.67,677.47,0.29521602]
[1738219908903,0.27099168,678.66,677.47,0.29521602]
[1738219909207,0.27099168,678.65,677.47,0.29521602]
[1738219909410,0.27099168,678.64,677.47,0.29521602]
[1738219909708,0.27099168,678.63,677.47,0.29521602]
[1738219909903,0.27099168,678.62,677.47,0.29521602]
[1738219910103,0.27099168,678.61,677.47,0.29521602]
[1738219910307,0.27099168,678.68,677.47,0.29521602]
[1738219910508,0.27099168,678.67,677.47,0.29521602]
[1738219910708,0.27099168,678.68,677.47,0.29521602]
[1738219910909,0.27099168,678.67,677.47,0.29521602]
[1738219911103,0.27099168,678.66,677.48,0.25709224]
[1738219911308,0.27099168,678.68,677.49,0.2952073]
[1738219911509,0.27099168,678.67,677.5,0.25709224]
[1738219911809,0.27099168,678.66,677.51,0.29519859]
[1738219912010,1.1044254,678.69,677.51,0.29519859]
[1738219912207,0.27098649,678.68,677.52,0.25709115]
[1738219912411,0.27098649,678.68,677.53,0.29518988]
[1738219912613,0.27098649,678.68,677.54,0.25709115]
[1738219912812,0.27098649,678.68,677.55,0.29518116]
[1738219913112,0.27098649,678.68,677.56,0.25709115]
[1738219913312,0.27098649,678.68,677.57,0.29517245]
[1738219913513,1.1044254,678.64,677.57,0.29517245]
[1738219913714,0.27098755,678.63,677.57,0.29517245]
[1738219914213,0.27098631,678.62,677.58,0.25709097]
[1738219914511,1.1044254,678.64,677.58,0.25709097]
[1738219914512,0.27098631,678.61,677.59,0.29516374]
[1738219914713,0.27098631,678.6,677.59,0.29516374]
[1738219914913,0.27098631,678.59,677.59,0.29516374]
[1738219915109,0.27098631,678.63,677.59,0.29516374]
[1738219915314,0.27098631,678.62,677.59,0.29516374]
[1738219915616,0.27098631,678.61,677.59,0.29516374]
[1738219915814,0.27098631,678.63,677.59,0.29516374]
[1738219916016,0.27098631,678.62,677.59,0.29516374]
[1738219916313,1.37541171,678.61,677.59,0.29516374]
[1738219916509,0.27098631,678.6,677.59,0.29516374]
[1738219917115,0.2709881,678.59,677.59,0.29516374]
[1738219917315,0.2709881,678.6,677.59,0.29516374]
[1738219917518,0.2709881,678.59,677.59,0.29516374]
[1738219917712,0.2709881,678.58,677.59,0.29516374]
[1738219917917,0.2709881,678.57,677.59,0.29516374]
[1738219918218,0.2709881,678.56,677.59,0.29516374]
[1738219918417,0.2709881,678.55,677.59,0.29516374]
[1738219918617,1.1044254,678.61,677.59,0.29516374]
[1738219918818,0.2709875,678.6,677.59,0.29516374]
[1738219919719,1.1044254,678.59,677.59,0.29516374]
[1738219919914,0.2709875,678.58,677.59,0.29516374]
[1738219922017,1.1044254,678.56,677.59,0.29516374]
[1738219922214,0.2709875,678.55,677.59,0.29516374]
[1738219922921,1.1044254,678.56,677.59,0.29516374]
[1738219923121,0.27099526,678.55,677.59,0.29516374]
[1738219923516,0.27099007,678.54,677.59,0.29516374]
[1738219923718,0.27099007,678.53,677.59,0.29516374]
[1738219923918,0.27099007,678.55,677.59,0.29516374]
[1738219924124,1.1044254,678.53,677.59,0.29516374]
[1738219924428,0.27099007,678.52,677.59,0.29516374]
[1738219927823,1.1044254,678.54,677.59,0.29516374]
[1738219928123,0.27098865,678.53,677.59,0.29516374]
[1738219930225,1.1044254,678.49,677.59,0.29516374]
[1738219930517,0.27098758,678.48,677.59,0.29516374]
[1738219933528,1.1044254,678.44,677.59,0.29516374]
[1738219937028,1.1044254,678.4,677.59,0.29516374]
[1738219939734,1.1044254,678.36,677.59,0.29516374]
[1738219948646,1.1044254,678.37,677.59,0.29516374]
[1738219950945,1.1044254,678.38,677.59,0.29516374]
[1738219954047,1.1044254,678.4,677.59,0.29516374]
[1738219956951,0.27101598,678.39,677.59,0.29516374]
[1738219958247,0.27101598,678.59,677.59,0.29516374]
[1738219958449,0.27101598,678.58,677.59,0.29516374]
[1738219958646,0.27101598,678.59,677.59,0.29516374]
[1738219958950,0.27101598,678.58,677.59,0.29516374]
[1738219959250,0.27101677,678.57,677.59,0.29516374]
[1738219959452,0.27101677,678.59,677.59,0.29516374]
[1738219959652,0.27101677,678.58,677.59,0.29516374]
[1738219959844,1.1044254,678.6,677.59,0.29516374]
[1738219960049,0.27101642,678.59,677.59,0.29516374]
[1738219960852,1.1044254,678.36,677.59,0.29516374]
[1738219961757,0.27103754,678.35,677.59,0.29516374]
[1738219962956,1.1044254,678.36,677.59,0.29516374]
[1738219963156,0.27107285,678.35,677.59,0.29516374]
[1738219964056,1.1044254,678.36,677.59,0.29516374]
[1738219964252,1.1044254,678.31,677.59,0.29516374]
[1738219966358,0.2711293,678.3,677.59,0.29516374]
[1738219966558,1.1044254,678.31,677.59,0.29516374]
[1738219966753,0.27112721,678.3,677.59,0.29516374]
[1738219967655,0.27112721,678.29,677.59,0.29516374]
[1738219967858,0.27112721,678.28,677.59,0.29516374]
[1738219968061,0.27112721,678.57,677.59,0.29516374]
[1738219968259,0.27112721,678.56,677.59,0.29516374]
[1738219968457,0.27112721,678.55,677.59,0.29516374]
[1738219968760,0.27112721,678.54,677.59,0.29516374]
[1738219969059,0.27112721,678.53,677.59,0.29516374]
[1738219969260,0.27112721,678.52,677.59,0.29516374]
[1738219969460,0.27112721,678.51,677.59,0.29516374]
[1738219969660,0.27112721,678.5,677.59,0.29516374]
[1738219969853,0.27112721,678.57,677.59,0.29516374]
[1738219970059,0.27112721,678.56,677.59,0.29516374]
[1738219970258,0.27112721,678.55,677.59,0.29516374]
[1738219970556,0.27112721,678.54,677.59,0.29516374]
[1738219970861,1.1044254,678.27,677.59,0.29516374]
[1738219971163,0.27112721,678.26,677.59,0.29516374]
[1738219973862,0.27112721,678.25,677.59,0.29516374]
[1738219974063,0.27112721,678.24,677.59,0.29516374]
[1738219974261,0.27112721,678.23,677.59,0.29516374]
[1738219974464,0.27112721,678.29,677.59,0.29516374]
[1738219977566,0.27112721,678.28,677.59,0.29516374]
[1738219977768,0.27112721,678.33,677.59,0.29516374]
[1738219978066,0.27112721,678.32,677.59,0.29516374]
[1738219978266,0.27112721,678.31,677.59,0.29516374]
[1738219978465,0.27112721,678.3,677.59,0.29516374]
[1738219978664,0.27112721,678.33,677.59,0.29516374]
[1738219978861,0.27112721,678.32,677.59,0.29516374]
[1738219979060,0.27112721,678.31,677.59,0.29516374]
[1738219979264,0.27112721,678.3,677.59,0.29516374]
[1738219979566,0.27112721,678.29,677.59,0.29516374]
[1738219979760,0.27112721,678.28,677.59,0.29516374]
[1738219979963,0.27112721,678.27,677.59,0.29516374]
[1738219980160,0.27112721,678.26,677.59,0.29516374]
[1738219980359,1.1044254,678.45,677.59,0.29516374]
[1738219980566,0.271123,678.44,677.59,0.29516374]
[1738219982965,1.1044254,678.36,677.59,0.29516374]
[1738219983471,0.27112786,678.35,677.59,0.29516374]
[1738219984870,0.27112873,678.34,677.59,0.29516374]
[1738219985071,0.27112873,678.35,677.59,0.29516374]
[1738219986171,1.1044254,678.34,677.59,0.29516374]
[1738219986473,0.27112873,678.33,677.59,0.29516374]
[1738219989272,0.27112873,678.41,677.59,0.29516374]
[1738219991474,0.27112873,678.44,677.59,0.29516374]
[1738219996082,1.1044254,678.4,677.59,0.29516374]
[1738219996276,0.27112873,678.39,677.59,0.29516374]
[1738219999479,1.1044254,678.26,677.59,0.29516374]
[1738220000275,0.27110027,678.25,677.59,0.29516374]
[1738220000675,1.1044254,678.26,677.59,0.29516374]
[1738220000973,0.27109951,678.25,677.59,0.29516374]
[1738220001176,1.1044254,678.26,677.59,0.29516374]
[1738220001978,1.1044254,678.18,677.59,0.29516374]
[1738220005579,1.1044254,678.4,677.59,0.29516374]
[1738220008273,1.1044254,678.44,677.59,0.29516374]
[1738220011381,0.27109522,678.43,677.59,0.29516374]
[1738220011878,1.1044254,678.42,677.59,0.29516374]
[1738220012082,0.27109522,678.41,677.59,0.29516374]
[1738220014477,1.1044254,678.42,677.59,0.29516374]
[1738220014678,1.1044254,678.26,677.59,0.29516374]
[1738220021187,0.27110597,678.25,677.59,0.29516374]
[1738220021389,1.1044254,678.23,677.59,0.29516374]
[1738220021580,0.27110597,678.22,677.59,0.29516374]
[1738220024386,1.1044254,678.23,677.59,0.29516374]
[1738220024982,1.1044254,678.19,677.59,0.29516374]
[1738220026891,0.27111953,678.18,677.59,0.29516374]
[1738220027491,0.27111953,678.17,677.59,0.29516374]
[1738220027890,1.1044254,678.2,677.59,0.29516374]
[1738220030395,1.1044254,678.4,677.59,0.29516374]
[1738220033188,1.1044254,678.38,677.59,0.29516374]
[1738220035196,1.1044254,678.36,677.59,0.29516374]
[1738220037896,0.27111189,678.35,677.59,0.29516374]
[1738220039196,1.1044254,678.36,677.59,0.29516374]
[1738220039496,0.27111461,678.35,677.59,0.29516374]
[1738220041494,0.27111461,678.35,676.95,1.09765334]
[1738220041697,0.27111461,678.35,676.97,0.29543406]
[1738220041997,0.27111461,678.35,676.98,1.79734727]
[1738220042193,0.27111461,678.35,677.0,0.29542097]
[1738220042394,0.27111461,678.35,677.01,0.25723464]
[1738220042594,0.27111461,678.35,677.03,0.29540788]
[1738220042792,1.1044254,678.21,677.15,1.09765334]
[1738220042998,1.1044254,678.21,677.16,0.29535117]
[1738220045496,0.27116546,678.2,677.16,0.29535117]
[1738220045897,1.1044254,678.21,677.16,0.29535117]
[1738220046396,1.1044254,678.15,677.16,0.29535117]
[1738220048498,0.27117999,678.14,677.16,0.29535117]
[1738220050100,1.1044254,678.12,677.16,0.29535117]
[1738220052502,0.27117554,678.11,677.16,0.29535117]
[1738220053501,0.56885281,678.47,677.16,0.29535117]
[1738220053502,0.27116762,678.1,677.16,0.29535117]
[1738220053696,1.1044254,678.15,677.16,0.29535117]
[1738220053901,0.27116845,678.14,677.16,0.29535117]
[1738220057001,0.27116845,678.13,677.16,0.29535117]
[1738220057202,0.27116845,678.12,677.16,0.29535117]
[1738220057501,1.1044254,678.17,677.16,0.29535117]
[1738220057702,0.27115985,678.16,677.16,0.29535117]
[1738220058303,0.27116007,678.15,677.16,0.29535117]
[1738220058502,0.27116007,678.16,677.16,0.29535117]
[1738220058695,1.1044254,678.17,677.16,0.29535117]
[1738220058696,0.27116007,678.15,677.16,0.29535117]
[1738220058900,0.27116007,678.16,677.16,0.29535117]
[1738220059397,1.37558547,678.16,677.16,0.29535117]
[1738220059696,0.27116007,678.15,677.16,0.29535117]
[1738220059898,1.1044254,678.16,677.16,0.29535117]
[1738220060106,0.27114715,678.15,677.16,0.29535117]
[1738220060296,1.1044254,678.16,677.16,0.29535117]
[1738220061296,0.27114665,678.15,677.16,0.29535117]
[1738220062703,0.27114665,678.14,677.16,0.29535117]
[1738220062906,0.27114665,678.19,677.16,0.29535117]
[1738220063108,0.27114665,678.18,677.16,0.29535117]
[1738220063311,0.27114665,678.17,677.16,0.29535117]
[1738220063609,0.27114665,678.16,677.16,0.29535117]
[1738220063810,1.1044254,678.2,677.16,0.29535117]
[1738220063811,0.27114665,678.15,677.16,0.29535117]
[1738220064004,0.27114665,678.19,677.16,0.29535117]
[1738220064205,0.27114665,678.18,677.16,0.29535117]
[1738220064407,0.27114665,678.17,677.16,0.29535117]
[1738220064604,0.27114665,678.19,677.16,0.29535117]
[1738220064808,0.27114474,678.18,677.16,0.29535117]
[1738220065008,0.27114474,678.19,677.16,0.29535117]
[1738220065211,1.1044254,678.2,677.16,0.29535117]
[1738220065404,1.1044254,678.13,677.16,0.29535117]
[1738220069215,1.1044254,678.44,677.16,0.29535117]
[1738220072413,1.1044254,678.48,677.16,0.29535117]
[1738220075020,0.27113735,678.47,677.16,0.29535117]
[1738220075214,0.27113735,678.48,677.16,0.29535117]
[1738220075412,0.27113735,678.47,677.16,0.29535117]
[1738220075615,0.27113735,678.46,677.16,0.29535117]
[1738220075816,0.27113735,678.45,677.16,0.29535117]
[1738220076017,0.27113735,678.44,677.16,0.29535117]
[1738220076216,0.27113588,678.43,677.16,0.29535117]
[1738220076412,0.27113588,678.48,677.16,0.29535117]
[1738220077723,1.1044254,678.49,677.16,0.29535117]
[1738220077914,0.27113572,678.48,677.16,0.29535117]
[1738220078523,1.1044254,678.33,677.16,0.29535117]
[1738220082921,1.1044254,678.27,677.16,0.29535117]
[1738220083124,0.27113285,678.26,677.16,0.29535117]
[1738220084221,1.1044254,678.27,677.16,0.29535117]
[1738220084437,0.27113338,678.26,677.16,0.29535117]
[1738220087423,1.1044254,678.27,677.16,0.29535117]
[1738220087621,0.27113876,678.26,677.16,0.29535117]
[1738220087824,1.1044254,678.13,677.16,0.29535117]
[1738220091226,1.1044254,678.13,677.17,0.25722334]
[1738220091527,1.1044254,678.13,677.16,0.29535117]
[1738220092226,1.1044254,678.13,677.17,0.25721754]
[1738220092428,1.1044254,678.13,677.18,0.29534244]
[1738220092622,1.1044254,678.13,677.19,0.25721914]
[1738220093027,1.1044254,678.13,677.2,0.29533372]
[1738220093223,1.1044254,678.13,677.21,0.25721914]
[1738220093429,1.1044254,678.13,677.22,0.295325]
[1738220093627,1.1044254,678.13,677.23,0.25721914]
[1738220093828,1.1044254,678.15,677.24,0.29531628]
[1738220097426,1.1044254,678.14,677.24,0.29531628]
[1738220097628,1.1044254,678.14,677.25,0.2572172]
[1738220097829,1.1044254,678.14,677.26,0.29530756]
[1738220099929,1.1044254,678.14,677.27,0.25721698]
[1738220100330,1.1044254,678.14,677.28,0.29529884]
[1738220103233,2.25070383,678.67,677.28,0.29529884]
[1738220103234,1.1044254,678.12,677.28,0.29529884]
[1738220105432,0.27112631,678.11,677.28,0.29529884]
[1738220107138,1.1044254,678.1,677.28,0.29529884]
[1738220107339,0.27112631,678.09,677.28,0.29529884]
[1738220107940,1.1044254,678.1,677.28,0.29529884]
[1738220108140,0.27114281,678.09,677.28,0.29529884]
[1738220109733,1.1044254,678.1,677.28,0.29529884]
[1738220109933,0.27114253,678.09,677.28,0.29529884]
[1738220110135,1.1044254,678.04,677.28,0.29529884]
[1738220113444,1.1044254,678.05,677.28,0.29529884]
[1738220116443,1.1044254,678.1,677.28,0.29529884]
[1738220117843,0.27113501,678.09,677.28,0.29529884]
[1738220118142,1.1044254,678.1,677.28,0.29529884]
[1738220119546,1.1044254,678.06,677.28,0.29529884]
[1738220122754,1.32286266,678.47,677.28,0.29529884]
[1738220122755,1.1044254,678.07,677.28,0.29529884]
[1738220125650,1.1044254,678.08,677.28,0.29529884]
[1738220126251,1.1044254,678.08,677.24,0.29531628]
[1738220131456,1.1044254,678.2,677.24,0.29531628]
[1738220134462,1.1044254,678.18,677.24,0.29531628]
[1738220137068,0.76148413,678.85,677.24,0.29531628]
[1738220137069,1.1044254,678.17,677.24,0.29531628]
[1738220141176,1.1044254,678.23,677.24,0.29531628]
[1738220144375,1.1044254,678.21,677.24,0.29531628]
[1738220148075,1.1044254,678.19,677.24,0.29531628]
[1738220150678,1.1044254,678.15,677.24,0.29531628]
[1738220152583,0.27114208,678.14,677.24,0.29531628]
[1738220153381,1.1044254,678.05,677.24,0.29531628]
[1738220156583,7.84699321,680.25,677.24,0.29531628]
[1738220156584,1.1044254,678.0,677.24,0.29531628]
[1738220162391,1.1044254,677.98,677.24,0.29531628]
[1738220164793,1.1044254,677.99,677.24,0.29531628]
[1738220168793,1.1044254,678.0,677.24,0.29531628]
[1738220171695,1.1044254,678.06,677.24,0.29531628]
[1738220174493,1.1044254,678.05,677.24,1.39296962]
[1738220178299,1.1044254,678.06,677.24,0.29531628]
[1738220181097,1.32286266,678.5,677.24,0.29531628]
[1738220181098,1.1044254,678.05,677.24,0.29531628]
[1738220184395,1.1044254,678.07,677.24,0.29531628]
[1738220187793,1.1044254,678.05,677.24,0.29531628]
[1738220191502,2.25070383,678.56,677.24,0.29531628]
[1738220191503,1.1044254,678.12,677.24,0.29531628]
[1738220195009,1.1044254,678.1,677.24,0.29531628]
[1738220198720,1.1044254,678.11,677.24,0.29531628]
[1738220201913,1.1044254,678.06,677.24,0.29531628]
[1738220205413,1.1044254,678.1,677.24,0.29531628]
[1738220206115,0.27120496,678.09,677.24,0.29531628]
[1738220206914,0.27121185,678.08,677.24,0.29531628]
[1738220207114,0.27121185,678.07,677.24,0.29531628]
[1738220207317,0.27122601,678.06,677.24,0.29531628]
[1738220207620,0.27122601,678.05,677.24,0.29531628]
[1738220207918,1.1044254,678.03,677.24,0.29531628]
[1738220208117,0.27122601,678.02,677.24,0.29531628]
[1738220208417,1.1044254,678.03,677.24,0.29531628]
[1738220208617,0.27123171,678.02,677.24,0.29531628]
[1738220210013,1.1044254,678.03,677.24,0.29531628]
[1738220210815,0.27123165,678.02,677.24,0.29531628]
[1738220212018,0.27122741,678.01,677.24,0.29531628]
[1738220212318,0.27122741,678.0,677.24,0.29531628]
[1738220212518,0.27122741,678.07,677.24,0.29531628]
[1738220212715,0.27122741,678.06,677.24,0.29531628]
[1738220212915,0.27122741,678.07,677.24,0.29531628]
[1738220213117,0.27122741,678.06,677.24,0.29531628]
[1738220213317,0.27122741,678.07,677.24,0.29531628]
[1738220213514,1.1044254,678.08,677.24,0.29531628]
[1738220213714,0.27122545,678.07,677.24,0.29531628]
[1738220214524,0.27122545,678.06,677.24,0.29531628]
[1738220214720,0.27122545,678.09,677.24,0.29531628]
[1738220214914,0.27122545,678.08,677.24,0.29531628]
[1738220215118,1.1044254,678.1,677.24,0.29531628]
[1738220215318,0.27123203,678.09,677.24,0.29531628]
[1738220218222,0.27123203,678.11,677.24,0.29531628]
[1738220218521,0.27123203,678.1,677.24,0.29531628]
[1738220218818,0.27123203,678.09,677.24,0.29531628]
[1738220219121,0.27123203,678.08,677.24,0.29531628]
[1738220219321,0.27123203,678.07,677.24,0.29531628]
[1738220219521,0.27123203,678.06,677.24,0.29531628]
[1738220219722,0.27123203,678.05,677.24,0.29531628]
[1738220219917,1.1044254,678.12,677.24,0.29531628]
[1738220220126,0.27122622,678.11,677.24,0.29531628]
[1738220220821,1.1044254,678.1,677.24,0.29531628]
[1738220221021,0.27122622,678.09,677.24,0.29531628]
[1738220221320,0.2712291,678.08,677.24,0.29531628]
[1738220221517,0.2712291,678.09,677.24,0.29531628]
[1738220222823,1.1044254,678.1,677.24,0.29531628]
[1738220223026,0.27122777,678.09,677.24,0.29531628]
[1738220223626,1.1044254,678.08,677.24,0.29531628]
[1738220223818,0.27122777,678.07,677.24,0.29531628]
[1738220225826,1.37565317,678.07,677.24,0.29531628]
[1738220226021,0.27122777,678.06,677.24,0.29531628]
[1738220227630,1.1044254,678.07,677.24,0.29531628]
[1738220227828,0.27122751,678.06,677.24,0.29531628]
[1738220228227,1.37565291,678.06,677.24,0.29531628]
[1738220228427,0.27122751,678.05,677.24,0.29531628]
[1738220229934,0.27122751,678.04,677.24,0.29531628]
[1738220230134,1.1044254,678.06,677.24,0.29531628]
[1738220230335,0.27122751,678.05,677.24,0.29531628]
[1738220231426,1.1044254,677.99,677.24,0.29531628]
[1738220231632,0.27122751,677.98,677.24,0.29531628]
[1738220232833,1.1044254,677.99,677.24,0.29531628]
[1738220233033,0.27123235,677.98,677.24,0.29531628]
[1738220234436,1.1044254,677.99,677.24,0.29531628]
[1738220234632,0.27123139,677.98,677.24,0.29531628]
[1738220235438,1.1044254,677.94,677.24,0.29531628]
[1738220235639,0.27123139,677.93,677.24,0.29531628]
[1738220236036,1.1044254,677.94,677.24,0.29531628]
[1738220238140,1.1044254,677.93,677.24,0.29531628]
[1738220242439,1.1044254,677.88,677.24,0.29531628]
[1738220244863,1.1044254,677.86,677.24,0.29531628]
[1738220247245,0.27123336,677.85,677.24,0.29531628]
[1738220247545,1.1044254,677.78,677.24,0.29531628]
[1738220250842,1.1044254,677.75,677.24,0.29531628]
[1738220254253,1.10238555,677.92,677.24,0.29531628]
[1738220254254,1.1044254,677.74,677.24,0.29531628]
[1738220257349,1.1044254,677.84,677.24,0.29531628]
[1738220260760,0.7601932,678.38,677.24,0.29531628]
[1738220260761,1.1044254,677.85,677.24,0.29531628]
[1738220264667,1.1044254,677.97,677.24,0.29531628]
[1738220267266,1.1044254,677.96,677.24,0.29531628]
[1738220271171,1.1044254,677.92,677.24,0.29531628]
[1738220273373,1.1044254,677.83,677.24,0.29531628]
[1738220276374,1.1044254,677.9,677.24,0.29531628]
[1738220278882,1.1044254,677.94,677.24,0.29531628]
[1738220281080,1.1044254,677.92,677.24,0.29531628]
[1738220283676,1.1044254,677.88,677.24,0.29531628]
[1738220285779,0.27125104,677.87,677.24,0.29531628]
[1738220288480,0.27125064,677.86,677.24,0.29531628]
[1738220288678,0.27125064,677.87,677.24,0.29531628]
[1738220288881,0.27125064,677.86,677.24,0.29531628]
[1738220289083,0.27125064,677.87,677.24,0.29531628]
[1738220289488,1.1044254,677.85,677.24,0.29531628]
[1738220289680,0.27125064,677.84,677.24,0.29531628]
[1738220292683,1.1044254,677.75,677.24,0.29531628]
[1738220295991,1.1044254,677.73,677.24,0.29531628]
[1738220298595,1.1044254,677.72,677.24,0.29531628]
[1738220301903,1.1044254,677.68,677.24,0.29531628]
[1738220305502,1.1044254,677.69,677.24,0.29531628]
[1738220306303,1.1044254,677.69,676.8,1.09765334]
[1738220306599,1.1044254,677.69,676.81,0.55289462]
[1738220306804,1.1044254,677.69,676.82,0.55289026]
[1738220307104,1.1044254,677.69,676.83,0.55288589]
[1738220307303,1.1044254,677.69,676.84,0.25739072]
[1738220307498,1.1044254,677.69,676.84,0.55288153]
[1738220307697,1.1044254,677.69,676.84,0.29549081]